bitfinex/quotes_SOLUSD_20251103
["timestamp","ask_amount","ask_price","bid_price","bid_amount"]
[1762159879821,7.9913709,175.53,175.5,12.88]
[1762159880123,7.9913709,175.52,175.51,20.592]
[1762159880333,0.71196673,175.57,175.51,20.592]
[1762159880515,7.9913709,175.52,175.51,20.592]
[1762159881127,0.69,175.56,175.53,20.592]
[1762159881307,7.9913709,175.54,175.53,20.592]
[1762159881505,0.71200729,175.56,175.53,20.592]
[1762159881725,0.89,175.59,175.56,20.592]
[1762159881925,0.2,175.59,175.58,20.592]
[1762159882443,0.89,175.59,175.58,20.592]
[1762159882611,0.2,175.59,175.58,20.592]
[1762159882811,0.2,175.59,175.57,7.9913709]
[1762159883429,0.2,175.59,175.58,8.4913709]
[1762159883628,0.2,175.59,175.58,18.28019859]
[1762159884314,0.2,175.59,175.58,10.28882769]
[1762159884636,0.2,175.59,175.58,18.28019859]
[1762159886313,0.2,175.6,175.59,128.5833709]
[1762159886525,0.2,175.6,175.59,101.25219859]
[1762159886730,0.2,175.6,175.59,88.37219859]
[1762159886938,0.2,175.6,175.58,20.592]
[1762159887236,0.2,175.6,175.56,7.9913709]
[1762159887442,0.2,175.6,175.56,20.8713709]
[1762159887613,0.9,175.6,175.59,20.592]
[1762159888040,8.8913709,175.6,175.51,9.78882769]
[1762159888212,7.9913709,175.59,175.51,59.78882769]
[1762159888414,7.9913709,175.58,175.52,12.88]
[1762159888625,7.9913709,175.56,175.51,7.9913709]
[1762159888827,7.9913709,175.55,175.52,12.88]
[1762159889037,7.9913709,175.55,175.48,50.5]
[1762159889038,7.9913709,175.55,175.54,20.592]
[1762159889212,7.9913709,175.55,175.5,12.88]
[1762159889410,7.9913709,175.53,175.5,12.88]
[1762159889616,7.9913709,175.54,175.5,12.88]
[1762159889928,0.7,175.54,175.53,20.592]
[1762159890128,0.7,175.54,175.48,20.592]
[1762159890129,8.6913709,175.54,175.48,20.592]
[1762159890323,0.7,175.54,175.45,7.9913709]
[1762159890529,7.9913709,175.52,175.47,7.9913709]
[1762159890743,7.9913709,175.53,175.47,7.9913709]
[1762159891144,0.7,175.53,175.48,33.452]
[1762159891326,7.9913709,175.52,175.48,33.452]
[1762159891836,0.71196673,175.57,175.48,33.452]
[1762159892043,7.9913709,175.53,175.48,33.452]
[1762159892423,8.6913709,175.53,175.48,33.452]
[1762159892640,7.9913709,175.51,175.5,20.592]
[1762159892843,7.9913709,175.51,175.43,7.9913709]
[1762159893051,7.9913709,175.56,175.44,12.86]
[1762159893052,7.9913709,175.47,175.44,12.86]
[1762159893233,7.9913709,175.46,175.43,12.86]
[1762159893539,0.7,175.5,175.46,20.592]
[1762159893716,7.9913709,175.47,175.43,12.86]
[1762159894122,7.9913709,175.48,175.46,20.592]
[1762159894532,7.9913709,175.47,175.46,20.592]
[1762159894734,8.6913709,175.48,175.46,20.592]
[1762159894935,0.71212898,175.53,175.46,20.592]
[1762159895131,0.7,175.51,175.46,20.592]
[1762159895443,1.9,175.56,175.48,20.592]
[1762159895647,7.9913709,175.54,175.5,20.592]
[1762159895847,0.7,175.53,175.5,20.592]
[1762159896151,8.6913709,175.53,175.5,20.592]
[1762159896338,8.6913709,175.53,175.49,20.592]
[1762159896548,7.9913709,175.5,175.49,20.592]
[1762159896730,7.9913709,175.5,175.47,20.592]
[1762159897044,7.9913709,175.49,175.47,20.592]
[1762159897251,8.6913709,175.49,175.47,20.592]
[1762159897455,0.7,175.52,175.47,20.592]
[1762159897626,7.9913709,175.49,175.47,20.592]
[1762159898039,0.7,175.54,175.47,20.592]
[1762159898247,7.9913709,175.52,175.46,7.9913709]
[1762159898457,7.9913709,175.52,175.49,20.592]
[1762159898670,8.6913709,175.54,175.49,20.592]
[1762159898961,0.7,175.54,175.49,20.592]
[1762159899165,0.7,175.53,175.49,20.592]
[1762159899358,8.6913709,175.58,175.52,7.9913709]
[1762159899664,7.9913709,175.59,175.55,20.592]
[1762159899827,8.1913709,175.6,175.57,20.592]
[1762159900033,0.7,175.59,175.57,20.592]
[1762159900233,8.6913709,175.59,175.57,20.592]
[1762159900834,8.6913709,175.58,175.55,20.592]
[1762159901035,7.9913709,175.56,175.55,20.592]
[1762159901236,8.6913709,175.57,175.55,20.592]
[1762159901643,7.9913709,175.57,175.55,20.592]
[1762159901846,0.9,175.6,175.55,20.592]
[1762159901847,7.9913709,175.58,175.55,20.592]
[1762159902043,0.7,175.59,175.57,20.592]
[1762159902248,0.2,175.6,175.57,20.592]
[1762159902855,0.2,175.6,175.59,20.592]
[1762159903536,0.2,175.6,175.59,36.09353836]
[1762159903742,0.2,175.6,175.59,86.59353836]
[1762159904146,0.2,175.6,175.59,86.09353836]
[1762159905466,0.2,175.6,175.59,80.38082769]
[1762159905645,0.2,175.6,175.59,86.09353836]
[1762159907649,0.2,175.6,175.59,80.38082769]
[1762159907866,0.2,175.6,175.59,86.09353836]
[1762159908259,0.2,175.6,175.59,86.59353836]
[1762159908973,0.2,175.61,175.6,9.78882769]
[1762159909280,0.7,175.69,175.6,9.78882769]
[1762159909281,0.7,175.75,175.66,50.0]
[1762159909568,6.41271067,175.73,175.66,68.57271067]
[1762159909752,0.7,175.73,175.66,28.36153836]
[1762159910178,6.41271067,175.73,175.66,22.64882769]
[1762159910470,6.41271067,175.73,175.66,78.36153836]
[1762159910769,0.7,175.73,175.66,65.50153836]
[1762159910955,0.7,175.73,175.66,78.36153836]
[1762159911359,0.2,175.74,175.67,50.0]
[1762159911571,0.9,175.72,175.67,59.78882769]
[1762159911871,0.9,175.72,175.67,18.57271067]
[1762159912245,0.2,175.72,175.67,28.36153836]
[1762159914164,0.2,175.72,175.67,39.16471067]
[1762159914567,0.2,175.72,175.67,33.452]
[1762159914875,0.2,175.72,175.67,48.95353836]
[1762159915078,0.2,175.72,175.7,9.78882769]
[1762159915287,0.2,175.72,175.7,28.36153836]
[1762159915469,0.2,175.72,175.7,28.46153836]
[1762159915782,0.1,175.71,175.7,37.93000419]
[1762159915952,0.1,175.71,175.7,28.46153836]
[1762159916273,0.2,175.74,175.7,28.46153836]
[1762159916274,0.2,175.74,175.73,130.38082769]
[1762159916485,0.2,175.74,175.73,148.95353836]
[1762159917058,0.2,175.74,175.73,153.54136855]
[1762159917583,0.2,175.74,175.73,98.93353836]
[1762159917966,0.2,175.74,175.73,148.93353836]
[1762159918171,0.2,175.74,175.73,130.38082769]
[1762159918370,0.2,175.74,175.73,148.93353836]
[1762159918582,0.2,175.74,175.73,36.09353836]
[1762159918784,0.2,175.74,175.73,26.30471067]
[1762159918985,0.2,175.74,175.68,5.71271067]
[1762159918986,6.59271067,175.74,175.68,5.71271067]
[1762159919199,5.71271067,175.73,175.72,20.592]
[1762159919490,6.39271067,175.73,175.72,20.592]
[1762159920088,6.39271067,175.73,175.68,12.84]
[1762159920400,5.71271067,175.69,175.65,12.84]
[1762159920697,5.71271067,175.67,175.63,12.84]
[1762159920863,5.71271067,175.67,175.66,20.592]
[1762159921063,0.68,175.67,175.66,20.592]
[1762159921287,6.39271067,175.67,175.63,12.84]
[1762159921494,5.71271067,175.64,175.58,6.30415064]
[1762159921693,5.71271067,175.61,175.59,12.84]
[1762159921860,5.71271067,175.61,175.6,20.592]
[1762159922059,5.71271067,175.61,175.56,5.71271067]
[1762159922367,5.71271067,175.62,175.57,12.84]
[1762159922588,5.71271067,175.62,175.6,20.592]
[1762159922891,5.71271067,175.63,175.62,20.592]
[1762159923198,5.71271067,175.66,175.64,20.592]
[1762159923361,0.70688609,175.71,175.64,20.592]
[1762159923561,5.71271067,175.66,175.61,5.71271067]
[1762159923777,5.71271067,175.71,175.68,20.592]
[1762159923979,5.71271067,175.71,175.69,20.592]
[1762159924488,0.2,175.74,175.69,20.592]
[1762159924794,0.2,175.74,175.7,20.592]
[1762159924795,0.68,175.73,175.7,20.592]
[1762159925168,1.38688609,175.73,175.69,20.592]
[1762159925368,5.71271067,175.7,175.69,20.592]
[1762159925774,6.39271067,175.7,175.64,12.84]
[1762159926095,5.71271067,175.73,175.67,5.71271067]
[1762159926271,6.59271067,175.74,175.68,5.71271067]
[1762159926595,5.71271067,175.73,175.68,18.55271067]
[1762159926883,5.71271067,175.71,175.66,12.84]
[1762159927092,5.71271067,175.72,175.66,18.55271067]
[1762159927262,5.71271067,175.72,175.66,62.84]
[1762159927456,6.39271067,175.73,175.68,5.71271067]
[1762159927657,0.68,175.73,175.71,20.592]
[1762159927885,7.09959676,175.72,175.66,20.592]
[1762159928166,5.71271067,175.69,175.66,20.592]
[1762159928366,5.71271067,175.69,175.67,20.592]
[1762159928796,5.71271067,175.71,175.66,20.592]
[1762159928987,5.71271067,175.72,175.67,26.30471067]
[1762159929286,5.71271067,175.72,175.67,20.592]
[1762159929502,5.71271067,175.72,175.67,26.30471067]
[1762159929665,5.71271067,175.71,175.67,20.592]
[1762159931292,5.71271067,175.73,175.67,76.30471067]
[1762159931493,0.2,175.74,175.73,20.592]
[1762159931692,5.91271067,175.74,175.71,20.592]
[1762159931891,5.71271067,175.72,175.71,20.592]
[1762159932101,6.39271067,175.72,175.68,20.592]
[1762159932301,5.71271067,175.69,175.68,20.592]
[1762159932593,5.71271067,175.69,175.62,12.84]
[1762159932772,0.70688609,175.68,175.59,5.71271067]
[1762159932962,5.71271067,175.64,175.6,12.84]
[1762159933386,5.71271067,175.63,175.6,12.84]
[1762159933575,5.71271067,175.62,175.57,5.71271067]
[1762159933882,5.71271067,175.68,175.64,20.592]
[1762159934090,6.41959676,175.69,175.65,20.592]
[1762159934393,5.71271067,175.68,175.65,20.592]
[1762159934761,5.71271067,175.69,175.65,20.592]
[1762159934989,5.71271067,175.69,175.66,20.592]
[1762159935189,5.71271067,175.7,175.66,20.592]
[1762159935882,5.71271067,175.69,175.66,20.592]
[1762159936390,5.71271067,175.7,175.66,20.592]
[1762159936688,5.71271067,175.69,175.66,20.592]
[1762159936891,5.71271067,175.68,175.65,20.592]
[1762159937798,5.71271067,175.69,175.66,20.592]
[1762159938176,5.71271067,175.7,175.66,20.592]
[1762159938896,6.39271067,175.7,175.66,20.592]
[1762159939062,5.71271067,175.71,175.66,20.592]
[1762159939261,0.90688609,175.74,175.7,20.592]
[1762159939262,0.2,175.74,175.7,20.592]
[1762159939488,0.2,175.74,175.71,20.592]
[1762159939489,5.91271067,175.74,175.71,20.592]
[1762159939794,5.91271067,175.74,175.72,20.592]
[1762159939795,0.2,175.74,175.72,20.592]
[1762159940368,0.2,175.74,175.73,20.592]
[1762159945809,6.59271067,175.74,175.73,20.592]
[1762159946006,6.59271067,175.74,175.72,20.592]
[1762159946007,5.91271067,175.74,175.72,20.592]
[1762159946294,5.91271067,175.74,175.69,6.30415064]
[1762159946295,0.2,175.74,175.73,20.592]
[1762159946808,0.2,175.74,175.72,68.53271067]
[1762159946984,0.2,175.77,175.75,20.592]
[1762159947597,0.2,175.77,175.76,20.592]
[1762159948190,6.63271067,175.77,175.76,20.592]
[1762159948395,6.63271067,175.77,175.74,20.592]
[1762159948587,5.71271067,175.75,175.74,20.592]
[1762159948792,0.72,175.76,175.74,20.592]
[1762159949107,0.72,175.76,175.69,0.66]
[1762159949108,0.72,175.76,175.72,20.592]
[1762159949489,5.71271067,175.74,175.72,20.592]
[1762159950604,0.2,175.77,175.72,26.96471067]
[1762159950897,0.2,175.77,175.74,20.592]
[1762159951102,0.2,175.77,175.75,0.66]
[1762159951401,0.2,175.77,175.76,20.592]
[1762159951600,0.2,175.77,175.75,33.412]
[1762159951781,0.2,175.77,175.75,34.072]
[1762159952104,0.2,175.77,175.75,33.412]
[1762159953889,6.63271067,175.77,175.74,20.592]
[1762159954205,6.63271067,175.77,175.76,20.592]
[1762159954800,0.2,175.77,175.76,20.592]
[1762159954985,5.68222683,175.99,175.76,99.57353836]
[1762159955187,0.80688609,175.9,175.85,20.592]
[1762159955499,35.71271067,175.86,175.85,20.592]
[1762159955807,5.71271067,175.86,175.85,20.592]
[1762159955977,6.43271067,175.86,175.85,20.592]
[1762159956181,6.43271067,175.86,175.8,20.592]
[1762159956408,6.43271067,175.86,175.83,20.592]
[1762159956409,5.71271067,175.85,175.83,20.592]
[1762159956605,6.43271067,175.85,175.83,20.592]
[1762159956920,6.43271067,175.85,175.79,13.48]
[1762159956921,0.72,175.84,175.82,20.592]
[1762159957282,9.78882769,175.89,175.84,20.592]
[1762159957604,0.80688609,175.9,175.82,20.592]
[1762159957605,0.72,175.87,175.82,26.30471067]
[1762159958313,6.41959676,175.86,175.84,20.592]
[1762159958492,0.70688609,175.86,175.84,20.592]
[1762159958692,0.72,175.85,175.84,20.592]
[1762159958900,6.43271067,175.85,175.84,20.592]
[1762159959290,36.43271067,175.85,175.78,20.592]
[1762159959488,30.72,175.85,175.83,20.592]
[1762159959689,0.72,175.84,175.83,20.592]
[1762159959993,12.8,175.86,175.8,20.592]
[1762159960208,0.72,175.85,175.82,26.30471067]
[1762159960705,12.8,175.86,175.82,26.30471067]
[1762159960897,13.52,175.86,175.82,26.30471067]
[1762159961809,0.80688609,175.9,175.84,5.71271067]
[1762159961810,13.52,175.89,175.84,5.71271067]
[1762159962197,0.72,175.88,175.84,5.71271067]
[1762159962400,0.72,175.88,175.84,26.30471067]
[1762159963313,6.43271067,175.88,175.84,20.592]
[1762159963685,0.72,175.87,175.84,20.592]
[1762159963886,6.41959676,175.86,175.81,20.592]
[1762159964084,0.70688609,175.85,175.81,20.592]
[1762159964296,13.52,175.89,175.85,20.592]
[1762159964503,21.45279529,175.89,175.85,20.592]
[1762159964699,0.72,175.88,175.85,20.592]
[1762159964912,30.0,175.86,175.85,20.592]
[1762159965496,30.72,175.86,175.85,20.592]
[1762159966023,0.72,175.86,175.85,20.592]
[1762159966223,8.65279529,175.86,175.85,20.592]
[1762159966417,0.72,175.86,175.85,20.592]
[1762159966790,9.35968138,175.86,175.79,7.93279529]
[1762159967093,7.93279529,175.83,175.82,20.592]
[1762159967498,8.65279529,175.83,175.82,20.592]
[1762159968027,8.65279529,175.83,175.78,20.592]
[1762159968326,7.93279529,175.79,175.78,20.592]
[1762159969593,7.93279529,175.81,175.78,20.592]
[1762159969793,8.65279529,175.81,175.78,20.592]
[1762159969996,13.50688609,175.84,175.78,29.18479529]
[1762159970308,7.93279529,175.84,175.81,20.592]
[1762159970510,8.65279529,175.85,175.81,20.592]
[1762159970916,0.70688609,175.88,175.81,28.52479529]
[1762159971123,7.93279529,175.87,175.83,20.592]
[1762159971619,8.65279529,175.87,175.83,20.592]
[1762159971821,8.15279529,175.87,175.83,20.592]
[1762159972115,7.93279529,175.86,175.83,20.592]
[1762159972312,8.65279529,175.86,175.83,20.592]
[1762159972525,12.78,175.88,175.83,20.592]
[1762159972734,7.93279529,175.86,175.83,20.592]
[1762159973113,7.93279529,175.87,175.83,20.592]
[1762159973513,8.65279529,175.88,175.83,20.592]
[1762159973714,7.93279529,175.87,175.83,20.592]
[1762159974038,7.93279529,175.88,175.83,21.252]
[1762159974211,7.93279529,175.88,175.84,0.66]
[1762159974410,20.71279529,175.89,175.87,20.592]
[1762159974612,30.0,175.88,175.87,20.592]
[1762159975618,21.43279529,175.89,175.87,20.592]
[1762159976628,8.58279529,175.88,175.87,20.592]
[1762159976941,7.93279529,175.88,175.87,20.592]
[1762159977130,8.58279529,175.89,175.87,20.592]
[1762159977438,0.65,175.89,175.87,20.592]
[1762159977614,8.03279529,175.9,175.87,20.592]
[1762159978022,0.65,175.89,175.87,20.592]
[1762159978314,8.03279529,175.9,175.87,20.592]
[1762159978625,8.68279529,175.9,175.87,20.592]
[1762159978845,7.93279529,175.88,175.84,20.592]
[1762159979041,7.93279529,175.87,175.83,12.78]
[1762159979233,7.93279529,175.86,175.85,20.592]
[1762159979438,7.93279529,175.87,175.85,20.592]
[1762159979842,0.65,175.88,175.78,6.98415064]
[1762159979843,9.28968138,175.86,175.78,6.98415064]
[1762159980141,7.93279529,175.84,175.82,20.592]
[1762159980639,7.93279529,175.87,175.84,20.592]
[1762159980842,0.1,175.9,175.84,20.592]
[1762159980843,7.93279529,175.86,175.84,20.592]
[1762159981140,7.93279529,175.85,175.79,20.71279529]
[1762159981338,7.93279529,175.84,175.79,7.93279529]
[1762159981522,7.93279529,175.84,175.79,20.71279529]
[1762159981722,7.93279529,175.84,175.82,20.592]
[1762159982737,61.8,175.85,175.82,20.592]
[1762159983047,7.93279529,175.84,175.82,20.592]
[1762159983642,61.8,175.85,175.83,8.61279529]
[1762159983851,61.8,175.89,175.84,29.20479529]
[1762159984023,61.8,175.89,175.86,7.93279529]
[1762159984223,30.0,175.87,175.86,7.93279529]
[1762159984422,30.0,175.87,175.85,7.93279529]
[1762159984647,30.0,175.87,175.85,8.61279529]
[1762159984833,30.0,175.87,175.86,20.592]
[1762159985030,30.0,175.87,175.85,8.61279529]
[1762159985343,30.0,175.87,175.86,28.52479529]
[1762159985525,0.1,175.9,175.86,91.96479529]
[1762159985720,0.1,175.9,175.89,20.592]
[1762159986636,8.68279529,175.9,175.89,20.592]
[1762159986837,8.68279529,175.9,175.87,20.592]
[1762159987336,0.75,175.9,175.89,20.592]
[1762159987517,0.1,175.9,175.89,20.592]
[1762159988646,0.1,175.9,175.88,13.44]
[1762159988845,0.1,175.9,175.89,20.592]
[1762159989219,0.1,175.9,175.87,20.592]
[1762159989419,0.1,175.9,175.87,28.52479529]
[1762159989641,0.1,175.9,175.88,0.68]
[1762159989838,0.1,175.9,175.88,20.592]
[1762159990552,0.1,175.9,175.89,0.68]
[1762159990926,0.1,175.9,175.89,8.61279529]
[1762159991130,61.5,175.94,175.89,8.61279529]
[1762159991337,61.5,175.93,175.92,20.592]
[1762159991525,91.5,175.93,175.92,29.20479529]
[1762159991725,91.5,175.93,175.9,62.76]
[1762159991726,30.0,175.93,175.91,7.93279529]
[1762159991939,30.0,175.93,175.92,0.68]
[1762159992252,12.76,175.97,175.92,41.96479529]
[1762159992751,7.93279529,175.99,175.93,29.20479529]
[1762159992960,12.76,176.01,175.99,20.592]
[1762159993124,30.0,176.0,175.99,20.592]
[1762159993322,38.58279529,176.0,175.99,20.592]
[1762159993855,39.28968138,176.0,175.96,20.592]
[1762159994156,7.93279529,175.97,175.96,20.592]
[1762159994753,12.76,175.98,175.96,20.592]
[1762159994949,12.76,175.98,175.96,21.272]
[1762159995126,12.76,175.98,175.96,29.20479529]
[1762159995439,12.76,175.98,175.96,28.52479529]
[1762159995632,20.67279529,176.01,175.96,28.52479529]
[1762159995835,0.65,176.0,175.96,28.52479529]
[1762159996241,8.58279529,176.0,175.98,20.592]
[1762159996449,0.65,176.0,175.98,20.592]
[1762159996628,7.93279529,176.0,175.98,20.592]
[1762159996824,8.58279529,175.99,175.98,20.592]
[1762159997025,0.65,175.99,175.98,20.592]
[1762159997224,8.58279529,175.99,175.92,0.68]
[1762159997426,12.74,175.98,175.96,7.93279529]
[1762159997657,8.58279529,176.01,175.96,7.93279529]
[1762159997658,12.74,176.0,175.97,7.93279529]
[1762159997952,0.65,176.04,175.99,28.52479529]
[1762159998162,12.74,176.03,176.01,20.592]
[1762159998336,12.74,176.03,176.01,28.52479529]
[1762159998533,12.74,176.03,176.02,20.592]
[1762159999258,0.1,176.05,176.01,28.52479529]
[1762159999424,0.1,176.05,176.04,28.52479529]
[1762159999832,0.1,176.05,176.04,8.61279529]
[1762160000031,0.1,176.05,176.04,81.14162298]
[1762160000240,0.1,176.06,176.05,50.0]
[1762160000441,0.1,176.06,176.05,68.40162298]
[1762160001236,0.1,176.06,176.05,7.93279529]
[1762160001435,0.1,176.06,176.05,41.26479529]
[1762160001960,0.1,176.06,176.05,20.592]
[1762160002643,0.1,176.06,176.05,29.20479529]
[1762160003035,0.1,176.06,176.05,101.73362298]
[1762160003738,0.1,176.06,176.05,93.80082769]
[1762160003933,0.1,176.06,176.05,41.26479529]
[1762160004338,0.1,176.06,176.05,28.52479529]
[1762160004555,0.75,176.06,176.03,20.592]
[1762160004865,0.1,176.06,176.03,20.592]
[1762160005031,0.1,176.06,176.03,28.52479529]
[1762160005437,0.1,176.06,176.03,20.592]
[1762160005630,0.1,176.06,176.04,7.93279529]
[1762160006261,0.1,176.06,176.03,28.52479529]
[1762160007054,0.1,176.06,176.05,20.592]
[1762160007055,0.82,176.06,176.05,20.592]
[1762160007248,0.1,176.06,176.05,20.592]
[1762160007838,0.82,176.06,176.05,20.592]
[1762160008048,0.1,176.06,176.05,20.592]
[1762160008630,0.1,176.06,176.05,28.52479529]
[1762160008963,0.1,176.06,176.05,29.19479529]
[1762160009259,0.1,176.06,176.05,28.52479529]
[1762160009555,0.1,176.06,176.05,20.592]
[1762160010359,0.1,176.06,176.04,7.93279529]
[1762160010861,0.82,176.06,176.04,7.93279529]
[1762160011068,7.93279529,176.05,175.99,7.93279529]
[1762160011241,0.72,176.04,176.0,7.93279529]
[1762160011442,0.70688609,176.05,176.0,7.93279529]
[1762160011656,8.65279529,176.04,176.03,20.592]
[1762160012262,0.72,176.04,176.03,20.592]
[1762160012762,1.52688609,176.06,176.03,20.592]
[1762160012968,8.65279529,176.05,176.03,20.592]
[1762160013464,7.93279529,176.05,176.03,20.592]
[1762160013652,0.72,176.04,176.03,20.592]
[1762160014369,0.1,176.06,176.03,28.52479529]
[1762160015067,0.82,176.06,176.03,20.592]
[1762160015764,0.1,176.06,176.03,20.592]
[1762160016069,0.72,176.05,176.03,20.592]
[1762160016366,0.1,176.06,176.03,28.52479529]
[1762160016862,0.1,176.06,176.05,28.52479529]
[1762160018751,0.1,176.06,176.05,33.292]
[1762160018955,0.1,176.06,176.05,41.22479529]
[1762160019357,0.1,176.06,176.05,151.68362298]
[1762160019674,0.72,176.16,176.08,100.0]
[1762160019843,0.72,176.16,176.15,20.592]
[1762160020750,0.72,176.16,176.12,28.52479529]
[1762160020948,0.72,176.16,176.06,4.72165291]
[1762160020949,8.63968138,176.15,176.1,7.93279529]
[1762160021295,7.93279529,176.11,176.07,20.592]
[1762160021448,0.72,176.15,176.1,7.93279529]
[1762160021648,8.65279529,176.15,176.1,7.93279529]
[1762160021847,1.99999999,176.25,176.14,20.592]
[1762160022051,7.93279529,176.22,176.15,20.592]
[1762160022353,7.93279529,176.17,176.12,7.93279529]
[1762160022551,10.50882769,176.22,176.11,28.52479529]
[1762160022763,7.93279529,176.16,176.12,20.592]
[1762160022968,0.70688609,176.15,176.13,20.592]
[1762160023151,9.78882769,176.19,176.13,20.592]
[1762160023349,12.7,176.17,176.13,20.592]
[1762160023550,21.33968138,176.18,176.13,28.52479529]
[1762160023773,22.05968138,176.18,176.13,28.52479529]
[1762160024078,0.72,176.17,176.13,20.592]
[1762160024381,7.93279529,176.15,176.13,20.592]
[1762160024548,0.70688609,176.16,176.14,20.592]
[1762160024549,8.63968138,176.16,176.14,20.592]
[1762160024749,1.42688609,176.16,176.14,20.592]
[1762160024973,0.72,176.16,176.14,20.592]
[1762160025374,7.93279529,176.18,176.16,20.592]
[1762160025691,0.70688609,176.18,176.16,20.592]
[1762160025864,0.70688609,176.19,176.16,20.592]
[1762160026183,0.67,176.18,176.16,20.592]
[1762160026378,1.37688609,176.19,176.16,20.592]
[1762160026672,7.05185856,176.19,176.15,20.592]
[1762160026875,0.70688609,176.19,176.15,26.26697247]
[1762160027073,12.68,176.2,176.16,26.26697247]
[1762160027382,13.35,176.2,176.16,26.26697247]
[1762160027580,12.68,176.2,176.16,26.26697247]
[1762160027786,13.35,176.2,176.16,20.592]
[1762160027980,13.38688609,176.2,176.16,26.26697247]
[1762160028161,5.67497247,176.18,176.15,20.592]
[1762160028478,6.38185856,176.18,176.16,20.592]
[1762160028669,6.34497247,176.17,176.16,20.592]
[1762160028866,19.06185856,176.18,176.16,20.592]
[1762160029068,19.06185856,176.18,176.15,20.592]
[1762160029069,12.68,176.18,176.15,20.592]
[1762160029567,12.68,176.18,176.12,12.68]
[1762160029568,0.67,176.17,176.13,26.26697247]
[1762160029766,6.38185856,176.16,176.13,20.592]
[1762160029970,1.37688609,176.17,176.13,20.592]
[1762160030170,12.68,176.18,176.14,5.67497247]
[1762160030371,13.38688609,176.18,176.14,5.67497247]
[1762160030670,0.70688609,176.18,176.14,5.67497247]
[1762160030869,6.38185856,176.19,176.14,5.67497247]
[1762160031176,12.68,176.21,176.13,33.272]
[1762160031366,1.37688609,176.2,176.13,38.67365291]
[1762160031556,1.37688609,176.2,176.16,5.67497247]
[1762160031757,7.05185856,176.2,176.13,33.952]
[1762160031970,6.34497247,176.19,176.13,38.94697247]
[1762160032180,0.70688609,176.18,176.13,38.94697247]
[1762160032385,1.37688609,176.18,176.13,20.592]
[1762160032681,5.67497247,176.16,176.13,20.592]
[1762160032991,0.67,176.17,176.13,20.592]
[1762160033462,0.67,176.17,176.13,26.26697247]
[1762160033660,0.70688609,176.2,176.15,5.67497247]
[1762160033661,7.05185856,176.2,176.15,5.67497247]
[1762160033883,19.71185856,176.2,176.15,5.67497247]
[1762160034057,0.67,176.19,176.15,5.67497247]
[1762160034488,0.70688609,176.2,176.15,6.35497247]
[1762160034694,1.37688609,176.2,176.16,5.67497247]
[1762160034896,0.67,176.2,176.17,5.67497247]
[1762160035765,0.70688609,176.21,176.15,4.72165291]
[1762160035981,1.37688609,176.21,176.17,5.67497247]
[1762160036164,7.05185856,176.21,176.16,5.67497247]
[1762160036365,7.05185856,176.21,176.15,10.39662538]
[1762160036566,7.05185856,176.21,176.15,4.72165291]
[1762160036781,7.05185856,176.21,176.16,5.67497247]
[1762160036981,0.68,176.2,176.16,5.67497247]
[1762160037362,0.68,176.2,176.17,5.67497247]
[1762160037975,0.68,176.2,176.16,4.72165291]
[1762160038178,0.70688609,176.19,176.16,20.592]
[1762160038581,6.35497247,176.18,176.15,20.592]